Cogmind - Beta 13 @@@ ROGUE MODE // 2024.05.14 @ 23:36:50 Player: BatSpy Result: Destroyed by S-10 Pest with Light Assault Rifle Performance ------------- Evolutions (1) 500 Regions Visited (2) 400 Robots Destroyed (16) 80 Value Destroyed (385) 385 Prototype IDs (4) 80 Alien Tech Used (0) 0 Bonus (0) 0 TOTAL SCORE: 1445 Bonus ------- None Cogmind --------- Core Integrity 0/400 Matter 254/300 Energy 125/125 System Corruption 0% Temperature Cool (0) Movement Rolling (100) Location -9/Materials Parts ------- > --- POWER (1) -------- Light Ion Engine > --- PROPULSION (2) --- Compact Wheel > --- UTILITY (4) ------ Improved Heat Sink Small Storage Unit > --- WEAPON (2) ------- Light Assault Rifle Maul > --- INVENTORY (8) ---- Light Ion Engine Light Assault Rifle Peak State ------------ > --- POWER ------------ Ion Engine > --- PROPULSION ------- Compact Wheel Compact Wheel > --- UTILITY ---------- Heat Sink Improved Heat Sink Small Storage Unit Seismic Detector > --- WEAPON ----------- Assault Rifle Heavy Hammer > --- INVENTORY -------- Compact Wheel Light Assault Rifle [Rating: 12] Favorites ----------- Power Light Ion Engine Engine Light Ion Engine Propulsion Compact Wheel Wheel Compact Wheel Flight Unit Flight Unit Utility Small Storage Unit Device Seismic Detector Storage Small Storage Unit Weapon Light Assault Rifle Ballistic Gun Light Assault Rifle Impact Weapon Heavy Hammer Build | -11 -10 -9 ------- Run | Yrd Mat Mat Slots Evolved 2 | . . 2 Power . | . . . Propulsion . | . . . Utility 2 | . . 2 Weapon . | . . . Parts Attached 21 | 6 2 13 Power 4 | 1 1 2 Engine 4 | 1 1 2 Core . | . . . Reactor . | . . . Propulsion 6 | 2 . 4 Treads . | . . . Leg . | . . . Wheel 3 | 2 . 1 Hover . | . . . Flight 3 | . . 3 Utility 4 | 1 1 2 Device 3 | . 1 2 Storage 1 | 1 . . Processor . | . . . Hackware . | . . . Protection . | . . . Artifact . | . . . Weapon 7 | 2 . 5 Energy Gun . | . . . Energy Cannon . | . . . Ballistic Gun 5 | 2 . 3 Ballistic Cannon . | . . . Launcher . | . . . Special Weapon . | . . . Impact Weapon 2 | . . 2 Slashing Weapon . | . . . Piercing Weapon . | . . . Special Melee Weapon . | . . . Unidentified Prototypes . | . . . Parts Lost 6 | . . 6 Power 1 | . . 1 Propulsion 3 | . . 3 Utility 2 | . . 2 Weapon . | . . . Highest Loss Streak 4 | . . 4 To Critical Strikes . | . . . Average Slot Usage (%) 80 | . 98 71 Engine 10 | . 14 9 Wheel 16 | . 28 10 Flight 2 | . . 3 Device 16 | . 12 18 Storage 12 | . 14 11 Ballistic Gun 15 | . 28 9 Impact Weapon 6 | . . 9 Naked Turns . | . . . Heaviest Build 17 | 11 14 17 Greatest Support 32 | 32 32 32 Greatest Overweight (x) 3 | . . 3 Average Overweight (x) . | . . . Largest Inventory Capacity 8 | 8 8 8 Average Capacity 7 | 6 8 8 Most Carried 5 | 5 4 4 Average Carried 1 | 1 . 2 Final Capacity 8 | 8 8 8 Final Carried 3 | . 3 2 Class Distribution -------------------- 86% | Mutant 13% | Scavenger-Mutant Dominant Class ---------------- Mutant | -10/Materials Mutant | -9/Materials Resources | -11 -10 -9 ----------- Run | Yrd Mat Mat Matter Collected 484 | 129 209 146 Remotely . | . . . Salvage Created 478 | . 296 182 Parts 28 | . 14 14 Haulers Intercepted . | . . . Recyclers Shooed . | . . . Parts Field Recycled . | . . . Retrieved Matter . | . . . Parts Self-Destructed . | . . . Prevented . | . . . Kills | -11 -10 -9 ------- Run | Yrd Mat Mat Combat Hostiles Destroyed 15 | . 5 10 Melee 6 | . . 6 Guns 7 | . 5 2 Classes Destroyed 3 | . 2 1 Recycler 1 | . 1 . Swarmer 6 | . . 6 Grunt 9 | . 5 4 Best Kill Streak 5 | . 3 5 Combat Bots Only 5 | . 2 5 Max Kills in Single Turn 1 | . 1 1 Gunslinging . | . . . Exploded . | . . . Melee 1 | . . 1 Uniques/NPCs Destroyed . | . . . Combat | -11 -10 -9 -------- Run | Yrd Mat Mat Hostile Shots Fired 174 | . 34 140 Missed 48 | . 7 41 Damage Taken 1190 | . 321 869 Core 557 | . 153 404 Absorbed by Shields . | . . . Core Remaining (%) 69 | 100 38 . Volleys Fired 52 | . 26 26 Largest 2 | . 2 1 Hottest 40 | . 40 20 Shots Fired 78 | . 52 26 Gun 78 | . 52 26 Cannon . | . . . Launcher . | . . . Special . | . . . Kinetic 78 | . 52 26 Thermal . | . . . Explosive . | . . . Electromagnetic . | . . . Robot Hit Streak 17 | . 7 17 Robot Miss Streak 3 | . 2 3 Penetration Max . | . . . Secondary Targets 2 | . 2 . Max Gunslinging Chain 1 | . 1 . Shots Hit Robots 70 | . 34 36 Core Hits 26 | . 16 10 Critical Kills . | . . . Critical Parts Destroyed 5 | . . 5 Critical Strikes 5 | . . 5 Smash 5 | . . 5 Melee Attacks 27 | . . 27 Impact 27 | . . 27 Slashing . | . . . Piercing . | . . . Sneak Attacks . | . . . Combat Hostiles . | . . . Follow-up Attacks . | . . . Damage Inflicted 1310 | . 356 954 Guns 514 | . 356 158 Cannons . | . . . Explosions . | . . . Melee 796 | . . 796 Ramming . | . . . Kinetic 514 | . 356 158 Thermal . | . . . Explosive . | . . . Electromagnetic . | . . . Impact 796 | . . 796 Slashing . | . . . Piercing . | . . . Highest Corruption . | . . . Average Corruption . | . . . Corruption Purged . | . . . Corruption Blocked . | . . . Overload Shots . | . . . Overflow Damage 267 | . . 267 Projectiles . | . . . Explosions . | . . . Melee 267 | . . 267 Knockbacks 1 | . . 1 Impact 1 | . . 1 Kinetic . | . . . Secondary . | . . . Self-Inflicted Damage . | . . . Shots . | . . . Rammed . | . . . Targets Rammed . | . . . Kicked . | . . . Crushed . | . . . Highest Temperature 12 | . 12 . Average Temperature 7 | . 7 . Received Heat Transfer 342 | . 186 156 Siege Activations . | . . . Robots Corrupted . | . . . Combat Hostiles . | . . . Parts Fried . | . . . Impact Corruptions 10 | . . 10 Robots Melted . | . . . Combat Hostiles . | . . . Parts Melted 1 | . . 1 Heat Transferred . | . . . Parts Sabotaged . | . . . Parts Stolen . | . . . Parts Stripped . | . . . Power Chain Reactions . | . . . Alert | -11 -10 -9 ------- Run | Yrd Mat Mat Peak Influence 270 | . 170 270 Initial 71 | . . 71 Average 123 | . 84 153 Maximum Alert Level 1 | . . 1 Low Security (%) 81 | 100 100 70 Level 1 18 | . . 29 Level 2 . | . . . Level 3 . | . . . Level 4 . | . . . Level 5 . | . . . High Security . | . . . Max Security . | . . . Squads Dispatched 2 | . 1 1 Investigation . | . . . Extermination . | . . . Reinforcement 2 | . 1 1 Assault . | . . . Garrison . | . . . Intercept . | . . . Searches Triggered . | . . . Construction Impeded . | . . . Haulers Reinforced . | . . . Active Scanning Responses . | . . . Cargo Convoy Interrupts . | . . . Stealth | -11 -10 -9 --------- Run | Yrd Mat Mat Distress Signals 3 | . 1 2 Communications Jammed . | . . . Distress Signals . | . . . Times Spotted 27 | . 9 18 Peak Tracking Total 8 | . 3 8 Tactical Retreats 1 | . . 1 Traps | -11 -10 -9 ------- Run | Yrd Mat Mat Traps Triggered . | . . . Indirectly . | . . . Trap Hack Attempts . | . . . Triggered . | . . . Disarmed . | . . . Reprogrammed . | . . . Reused . | . . . Traps Extracted . | . . . Installed . | . . . Triggered . | . . . Machines | -11 -10 -9 ---------- Run | Yrd Mat Mat Machines Disabled . | . . . Max in Single Turn . | . . . Machines Repaired . | . . . Machines Dismantled . | . . . Machines Sabotaged . | . . . Overloaded Fab Kills . | . . . Hacking | -11 -10 -9 --------- Run | Yrd Mat Mat Machines Accessed 10 | . 3 7 Terminals 8 | . 3 5 Fabricators . | . . . Repair Stations . | . . . Recycling Units 2 | . . 2 Scanalyzers . | . . . Garrison Access . | . . . Total Hacks 22 | . 7 15 Successful 13 | . 4 9 Failed 9 | . 3 6 Catastrophic 1 | . . 1 Database Lockouts . | . . . Manual . | . . . Terminals 19 | . 7 12 Fabricators . | . . . Repair Stations . | . . . Recycling Units 3 | . . 3 Scanalyzers . | . . . Garrison Access . | . . . Terminal Hacks 10 | . 4 6 Record 1 | . . 1 Prototype ID Bank 2 | . 1 1 Emergency Access Points 1 | . 1 . Locate Traps 4 | . 1 3 Hauler Manifests 1 | . . 1 Zone Layout 1 | . 1 . Fabricator Hacks . | . . . Repair Station Hacks . | . . . Recycling Unit Hacks 3 | . . 3 Report Inventory 2 | . . 2 Retrieve Components 1 | . . 1 Scanalyzer . | . . . Garrison Access Hacks . | . . . Unauthorized Hacks . | . . . Terminals . | . . . Fabricators . | . . . Repair Stations . | . . . Recycling Units . | . . . Scanalyzers . | . . . Garrison Access . | . . . Data Cores Recovered . | . . . Used . | . . . Hacking Detections 5 | . 2 3 Full Trace Events 1 | . 1 . Feedback Events . | . . . Feedback Blocked . | . . . Robot Schematics Acquired . | . . . Robots Built . | . . . Authchips . | . . . Time . | . . . Total Robot Build Rating . | . . . Part Schematics Acquired . | . . . Parts Built . | . . . Authchips . | . . . Time . | . . . Total Part Build Rating . | . . . Parts Repaired . | . . . Time . | . . . Parts Recycled . | . . . Recycled Matter . | . . . Retrieved Matter . | . . . Retrieved Components 10 | . . 10 Parts Scanalyzed . | . . . Part Schematics Acquired . | . . . Parts Damaged . | . . . Bothacking | -11 -10 -9 ------------ Run | Yrd Mat Mat Used RIF Installer . | . . . Robots Hacked . | . . . Non-combat . | . . . Combat . | . . . Robot Hacks Applied . | . . . Relay Couplers Released . | . . . Fabnet Peak Effective % . | . . . Robots Rewired . | . . . Allies Hacked . | . . . Hacks Repelled . | . . . Allies | -11 -10 -9 -------- Run | Yrd Mat Mat Total Allies . | . . . Largest Group . | . . . Highest-Rated Group . | . . . Highest-Rated Ally . | . . . Total Orders . | . . . Ally Attacks . | . . . Total Damage . | . . . Kills . | . . . Allies Corrupted . | . . . Allies Melted . | . . . Intel | -11 -10 -9 ------- Run | Yrd Mat Mat Robot Analysis Total . | . . . Derelict Logs Recovered . | . . . Drone Launches . | . . . Drone Recoveries . | . . . Exploration | -11 -10 -9 ------------- Run | Yrd Mat Mat Turns Passed 756 | 39 242 475 Spaces Moved 473 | 34 162 277 Core 14 | 13 . 1 Treads . | . . . Legs . | . . . Wheels 420 | 21 162 237 Hover . | . . . Flight 39 | . . 39 Fastest Speed 50 | 50 100 100 Average Speed 104 | 80 100 109 Slowest Speed 280 | 100 100 280 Overloaded Moves . | . . . Propulsion Burnouts . | . . . Robots Hopped . | . . . Cave-ins Triggered . | . . . Exploration Rate (%) 21 | 3 34 28 Regions Visited 2 Branch Regions . Pre-discovered Areas . | . . . Known Exits Taken . | . . . Unknown Exits Taken 2 | 1 1 . Scrap Searched . | . . . Spaces Dug . | . . . Terrain Destroyed . | . . . Melee . | . . . Projectile . | . . . AOE . | . . . Terrain Rammed . | . . . Walls Destroyed . | . . . Machines Disabled . | . . . Actions | -11 -10 -9 --------- Run | Yrd Mat Mat Total 619 | 45 195 379 Wait 21 | . . 21 Move 471 | 33 161 277 Hop . | . . . Pick Up 20 | 6 5 9 Fast Attach . | . . . Attach 14 | 6 1 7 Detach 1 | . . 1 Swap 7 | . 1 6 Drop 6 | . 1 5 Fire 52 | . 26 26 Melee 27 | . . 27 Ram . | . . . Kick . | . . . Crush . | . . . Escape Stasis . | . . . Rewire . | . . . Trap . | . . . Miscellaneous . | . . . Route ------- -11/Scrapyard -10/Materials -9/Materials History --------- Turn | Location | Event 23 | -11/Scrapyard | Discovered new exit (range 15) 40 | -11/Scrapyard | Entered Materials 237 | -10/Materials | Core integrity fell below 50% 260 | -10/Materials | Discovered new exit (range 5) 282 | -10/Materials | Entered another Materials area 282 | -9/Materials | Evolved 2 slots: Utility x2 303 | -9/Materials | Build established: Mutant 542 | -9/Materials | Core integrity fell below 50% 565 | -9/Materials | Core integrity fell below 20% 573 | -9/Materials | Lost 4 parts (1p1n2u) 757 | -9/Materials | Destroyed by S-10 Pest with Light Assault Rifle Last Messages --------------- >>Query(Blade Trap) A simple trap mechanism, though the effectiveness of forcibly detaching target components is not to be underestimated where hostile forces are incapable of rebuilding in the field. Connecting with Scanalyzer... Connecting with Terminal... >>Traps(Locate) Found 6 traps in 1 array: 6x Shock Trap Map updated. Connecting with Terminal... K-01 Serf collects debris. K-01 Serf cleans the Electrolysis Chamber. Connecting with Recycling Unit... >>Recycling(Report) Matter reserves: 0 Inventory: Empty K-01 Serf cleans the Electrolysis Chamber. Map ----- +----------------------------------------------------+ | | | | | | | | | | | | | | | | | | | | | | | | | | | | | ?????????????????????????###########?????????????? | | ?????????????????????????# * #?????????????? | | ?????????????????????????# """ #?????????????? | | ?????????????????????????# "Y" ! #?????????????? | | ?????????????????????????# #?????????????? | | ??????????????????############+#######???????????? | | ??????????????????# + ^ #?????????### | | ??????????????????# ## ^ #?????????# | | ??????????????????# ## ^ #?????????# | | ??????????????????# ## ^ #?????????# " | | ?????????????????#########+## ^ #?????????# " | | ?????????? rs @ ^ #######???# " | | ?????????? s k #???# | | ?????????? a k #???### | | ???????????#### #####+####### """ ###### | | ??????????????????? ???????# """ w"Y" | | ??????????????????# ????????# """ m**[ ###### | | ??????????????????#????????"" """ [ [%# % # | | ??????????????????????????"R [ +% # | | ??????????????????????????""" # "" ## | | ??????????????????????????### """ """ # "T #? | | ????????????????????????????# """ """ # "" #? | | ??????????????????????????? """ """ # #? | | ??????????????????????????? ######? | | ??????????????????????????? ####### | | ??????????????????????????? % | | ??????????????????????????? ########+######## ^ | | ??????????????????????????????????? ???????#^ " | | ?????????????????????????????????? ????????# ^ T | | ?????????????????????????????????# ?????????# " | | ?????????????????????????????????#??????????# | | ????????????????????????????????????????????# | | ????????????????????????????????????????????# | | ????????????????????????????????????????????#^ | | ????????????????????????????????????????????#^ """ | | ????????????????????????????????????????????# """ | +----------------------------------------------------+ Best States ------------- Heat Dissipation 52 Energy Generation 10 Energy Capacity 250 Matter Stores 300 Matter Capacity 300 Sight Range 16 Terrain Scan Density 10 Evasion (%) 50 Item Schematics ----------------- None Robot Schematics ------------------ None Fabricated ------------ Nothing Alien Tech Used ----------------- None Achievements -------------- None Challenges ------------ None Game ------ Seed ThrusterCannonConstruct Manual? 0 Play Time 00:14:08 Cumulative 5.5 hours Start 2024.05.14 @ 23:24:39 End 2024.05.14 @ 23:36:50 Sessions 1 Manual Loads 0 Difficulty Rogue Special Mode None Game No. 8 Rogue 8 Adventurer 0 Explorer 0 Win Type - Total 0 Types 0/0/0/0/0/0/0/0/0 Lore% 6 Gallery% 14 Achievement% 11 Wizard Run 0 Options --------- Layout 1 ASCII 0 Keyboard 0 Movement Mouse Keybinds 0 Fullscreen 2 Font 32/SmallcapsGlow Map View 50x35 Zoom Use 0% Tactical HUD 0 Map Filters NONE Filters NONE Steam 1 RUN: 5d50e480-44bc-4656-9ff2-469cfea8d96c